[Event "January 9 Early 2024"]
[Site "https://www.chess.com"]
[Date "2024.01.11"]
[Round "2"]
[White "Leyva Proenza, Richard"]
[Black "Mahdavi, Reza"]
[Result "0-1"]
[Board "172"]
[TimeControl "180+1"]
[WhiteFideId "3500985"]
[BlackFideId "12595926"]
[WhiteElo "2577"]
[BlackElo "2870"]
[WhiteTeam "VEN"]
[BlackTeam "IRI"]
[WhiteClock "0:00:21"]
[BlackClock "0:00:08"]

1. e4 {[%clk 0:02:59]}  c6 {[%clk 0:02:59]} 2. d4 {[%clk 0:02:59]}  d5 {[%clk 0:03:00]} 3. e5 {[%clk 0:02:59]}  Bf5 {[%clk 0:03:00]} 4. Nf3 {[%clk 0:03:00]}  e6 {[%clk 0:03:00]} 5. Be2 {[%clk 0:03:00]}  Nd7 {[%clk 0:03:01]} 6. O-O {[%clk 0:03:00]}  a5 {[%clk 0:03:01]} 7. b3 {[%clk 0:02:52]}  f6 {[%clk 0:02:59]} 8. c4 {[%clk 0:02:50]}  fxe5 {[%clk 0:02:53]} 9. dxe5 {[%clk 0:02:48]}  Bc5 {[%clk 0:02:53]} 10. Bb2 {[%clk 0:02:47]}  Ne7 {[%clk 0:02:46]} 11. cxd5 {[%clk 0:02:41]}  Nxd5 {[%clk 0:02:31]} 12. Nc3 {[%clk 0:02:37]}  O-O {[%clk 0:02:31]} 13. Na4 {[%clk 0:02:31]}  Qe8 {[%clk 0:02:14]} 14. Nxc5 {[%clk 0:02:29]}  Nxc5 {[%clk 0:02:14]} 15. Nd4 {[%clk 0:02:28]}  Qg6 {[%clk 0:02:05]} 16. Ba3 {[%clk 0:02:24]}  Nb4 {[%clk 0:01:47]} 17. Nxf5 {[%clk 0:02:18]}  Qxf5 {[%clk 0:01:24]} 18. Bxb4 {[%clk 0:02:08]}  axb4 {[%clk 0:01:24]} 19. Qd6 {[%clk 0:02:00]}  Ra5 {[%clk 0:00:43]} 20. Bc4 {[%clk 0:01:55]}  Kh8 {[%clk 0:00:40]} 21. Qc7 {[%clk 0:01:48]}  Raa8 {[%clk 0:00:33]} 22. Qb6 {[%clk 0:01:40]}  Qxe5 {[%clk 0:00:28]} 23. Qxb4 {[%clk 0:01:40]}  b5 {[%clk 0:00:23]} 24. Rae1 {[%clk 0:01:37]}  Qd4 {[%clk 0:00:19]} 25. Rd1 {[%clk 0:01:36]}  Qe5 {[%clk 0:00:19]} 26. Rde1 {[%clk 0:01:30]}  Qf5 {[%clk 0:00:20]} 27. Be2 {[%clk 0:01:25]}  Rxa2 {[%clk 0:00:20]} 28. Qd4 {[%clk 0:01:04]}  Nxb3 {[%clk 0:00:16]} 29. Qd7 {[%clk 0:01:04]}  Nd2 {[%clk 0:00:14]} 30. Bd3 {[%clk 0:00:41]}  Qg5 {[%clk 0:00:14]} 31. Qxe6 {[%clk 0:00:36]}  Nf3+ {[%clk 0:00:14]} 32. Kh1 {[%clk 0:00:37]}  Nxe1 {[%clk 0:00:15]} 33. Be4 {[%clk 0:00:28]}  Re2 {[%clk 0:00:11]} 34. Qxc6 {[%clk 0:00:24]}  Qf6 {[%clk 0:00:08]} 35. f3 {[%clk 0:00:21]}  Qxc6 {[%clk 0:00:07]} 36. Bxc6 {[%clk 0:00:21]}  b4 {[%clk 0:00:08]} 0-1

[Event "January 9 Early 2024"]
[Site "https://www.chess.com"]
[Date "2024.01.11"]
[Round "2"]
[White "De Pablo Pena, Miguel Angel"]
[Black "Balla, Tamas-Kristof"]
[Result "0-1"]
[Board "175"]
[TimeControl "180+1"]
[WhiteFideId "2219123"]
[BlackFideId "1208497"]
[WhiteElo "2175"]
[BlackElo "2467"]
[WhiteTeam "ESP"]
[BlackTeam "ROU"]
[WhiteClock "0:00:16"]
[BlackClock "0:00:12"]

1. e4 {[%clk 0:03:00]}  c5 {[%clk 0:02:58]} 2. Nc3 {[%clk 0:03:00]}  Nc6 {[%clk 0:02:58]} 3. f4 {[%clk 0:03:00]}  g6 {[%clk 0:02:57]} 4. Nf3 {[%clk 0:03:00]}  Bg7 {[%clk 0:02:57]} 5. Bc4 {[%clk 0:03:01]}  e6 {[%clk 0:02:57]} 6. f5 {[%clk 0:03:02]}  gxf5 {[%clk 0:02:56]} 7. d3 {[%clk 0:03:01]}  Nge7 {[%clk 0:02:53]} 8. O-O {[%clk 0:03:01]}  d5 {[%clk 0:02:48]} 9. Bb3 {[%clk 0:02:52]}  dxe4 {[%clk 0:02:35]} 10. dxe4 {[%clk 0:02:41]}  Qxd1 {[%clk 0:02:34]} 11. Rxd1 {[%clk 0:02:35]}  Bxc3 {[%clk 0:02:30]} 12. bxc3 {[%clk 0:02:36]}  fxe4 {[%clk 0:02:30]} 13. Ng5 {[%clk 0:02:37]}  b5 {[%clk 0:02:07]} 14. a4 {[%clk 0:02:31]}  c4 {[%clk 0:02:07]} 15. Ba2 {[%clk 0:02:13]}  f5 {[%clk 0:01:42]} 16. axb5 {[%clk 0:02:12]}  Ne5 {[%clk 0:01:42]} 17. Ba3 {[%clk 0:01:30]}  Nd5 {[%clk 0:00:58]} 18. Bd6 {[%clk 0:01:13]}  Nf7 {[%clk 0:00:50]} 19. Nxf7 {[%clk 0:01:01]}  Kxf7 {[%clk 0:00:51]} 20. Bxc4 {[%clk 0:01:01]}  Ne3 {[%clk 0:00:49]} 21. Rd4 {[%clk 0:00:43]}  Nxc2 {[%clk 0:00:49]} 22. Rf1 {[%clk 0:00:19]}  Nxd4 {[%clk 0:00:44]} 23. cxd4 {[%clk 0:00:20]}  Kg6 {[%clk 0:00:38]} 24. g4 {[%clk 0:00:19]}  Bb7 {[%clk 0:00:35]} 25. gxf5+ {[%clk 0:00:18]}  exf5 {[%clk 0:00:35]} 26. Kf2 {[%clk 0:00:18]}  Rhc8 {[%clk 0:00:27]} 27. Rg1+ {[%clk 0:00:18]}  Kf6 {[%clk 0:00:16]} 28. Be5+ {[%clk 0:00:17]}  Ke7 {[%clk 0:00:15]} 29. Rg7+ {[%clk 0:00:18]}  Kf8 {[%clk 0:00:12]} 30. Rf7+ {[%clk 0:00:17]}  Ke8 {[%clk 0:00:11]} 31. Bd5 {[%clk 0:00:16]}  Bxd5 {[%clk 0:00:10]} 32. Rxh7 {[%clk 0:00:16]}  Rc2+ {[%clk 0:00:10]} 33. Ke3 {[%clk 0:00:16]}  Rac8 {[%clk 0:00:10]} 34. Rh8+ {[%clk 0:00:16]}  Kd7 {[%clk 0:00:10]} 35. Rh7+ {[%clk 0:00:17]}  Ke6 {[%clk 0:00:11]} 36. Rh6+ {[%clk 0:00:17]}  Kf7 {[%clk 0:00:12]} 37. Rh7+ {[%clk 0:00:17]}  Kg6 {[%clk 0:00:12]} 38. Rg7+ {[%clk 0:00:17]}  Kh5 {[%clk 0:00:13]} 39. h4 {[%clk 0:00:18]}  R8c3+ {[%clk 0:00:12]} 40. Kf4 {[%clk 0:00:16]}  Rf3# {[%clk 0:00:12]} 0-1

[Event "January 9 Early 2024"]
[Site "https://www.chess.com"]
[Date "2024.01.11"]
[Round "2"]
[White "Abrosimov, Vladimir"]
[Black "Tiarks, Jann-Christian"]
[Result "0-1"]
[Board "176"]
[TimeControl "180+1"]
[WhiteFideId "4166892"]
[BlackFideId "12951595"]
[WhiteElo "2197"]
[BlackElo "2480"]
[WhiteTeam "RUS"]
[BlackTeam "GER"]
[WhiteClock "0:00:01"]
[BlackClock "0:00:35"]

1. c4 {[%clk 0:03:00]}  e5 {[%clk 0:02:56]} 2. Nc3 {[%clk 0:03:01]}  Nf6 {[%clk 0:02:55]} 3. g3 {[%clk 0:03:01]}  c6 {[%clk 0:02:55]} 4. Bg2 {[%clk 0:03:01]}  d5 {[%clk 0:02:56]} 5. cxd5 {[%clk 0:03:01]}  cxd5 {[%clk 0:02:56]} 6. d3 {[%clk 0:03:02]}  h6 {[%clk 0:02:54]} 7. Nf3 {[%clk 0:03:02]}  Nc6 {[%clk 0:02:54]} 8. O-O {[%clk 0:03:00]}  Be6 {[%clk 0:02:54]} 9. a3 {[%clk 0:02:58]}  Bd6 {[%clk 0:02:51]} 10. b4 {[%clk 0:02:57]}  O-O {[%clk 0:02:50]} 11. Bb2 {[%clk 0:02:57]}  a6 {[%clk 0:02:50]} 12. Rc1 {[%clk 0:02:56]}  Rc8 {[%clk 0:02:51]} 13. Na4 {[%clk 0:02:54]}  a5 {[%clk 0:02:40]} 14. b5 {[%clk 0:02:50]}  Na7 {[%clk 0:02:40]} 15. Nxe5 {[%clk 0:02:40]}  Nxb5 {[%clk 0:02:34]} 16. Qb3 {[%clk 0:02:37]}  Qe8 {[%clk 0:02:20]} 17. d4 {[%clk 0:02:27]}  Ne4 {[%clk 0:02:12]} 18. Rfd1 {[%clk 0:02:07]}  f6 {[%clk 0:02:02]} 19. Nd3 {[%clk 0:02:00]}  Rxc1 {[%clk 0:01:57]} 20. Nxc1 {[%clk 0:01:41]}  Kh8 {[%clk 0:01:47]} 21. Nd3 {[%clk 0:01:37]}  f5 {[%clk 0:01:20]} 22. Nac5 {[%clk 0:01:29]}  Bg8 {[%clk 0:01:12]} 23. Nxb7 {[%clk 0:01:24]}  f4 {[%clk 0:01:11]} 24. Nxd6 {[%clk 0:01:22]}  Nbxd6 {[%clk 0:01:12]} 25. Nxf4 {[%clk 0:01:20]}  Nc4 {[%clk 0:01:03]} 26. Bc3 {[%clk 0:00:58]}  Nxf2 {[%clk 0:00:59]} 27. Kxf2 {[%clk 0:00:53]}  Qe3+ {[%clk 0:00:59]} 28. Kf1 {[%clk 0:00:50]}  g5 {[%clk 0:00:59]} 29. Rd3 {[%clk 0:00:42]}  Qc1+ {[%clk 0:00:57]} 30. Be1 {[%clk 0:00:32]}  gxf4 {[%clk 0:00:55]} 31. g4 {[%clk 0:00:29]}  Ne3+ {[%clk 0:00:51]} 32. Kf2 {[%clk 0:00:15]}  Nxg2 {[%clk 0:00:41]} 33. Rd1 {[%clk 0:00:16]}  Qe3+ {[%clk 0:00:39]} 34. Kxg2 {[%clk 0:00:16]}  Qxb3 {[%clk 0:00:38]} 35. Rd3 {[%clk 0:00:15]}  Qc2 {[%clk 0:00:38]} 36. Kf2 {[%clk 0:00:14]}  Re8 {[%clk 0:00:35]} 37. Rd2 {[%clk 0:00:12]}  Qe4 {[%clk 0:00:34]} 38. Rb2 {[%clk 0:00:10]}  Qxd4+ {[%clk 0:00:34]} 39. Kg2 {[%clk 0:00:01]}  Qxb2 {[%clk 0:00:35]} 0-1

[Event "January 9 Early 2024"]
[Site "https://www.chess.com"]
[Date "2024.01.11"]
[Round "2"]
[White "Ronka, Erik"]
[Black "Gonzalez Vega, Alejandro"]
[Result "1-0"]
[Board "179"]
[TimeControl "180+1"]
[WhiteFideId "505080"]
[BlackFideId "3510042"]
[WhiteElo "2527"]
[BlackElo "2319"]
[WhiteTeam "FIN"]
[BlackTeam "CUB"]
[WhiteClock "0:00:16"]
[BlackClock "0:00:04"]

1. e4 {[%clk 0:03:00]}  c5 {[%clk 0:02:59]} 2. Nf3 {[%clk 0:03:01]}  a6 {[%clk 0:02:58]} 3. c3 {[%clk 0:03:01]}  Nf6 {[%clk 0:02:58]} 4. e5 {[%clk 0:03:01]}  Nd5 {[%clk 0:02:58]} 5. d4 {[%clk 0:03:01]}  cxd4 {[%clk 0:02:59]} 6. Bc4 {[%clk 0:03:01]}  Nb6 {[%clk 0:02:58]} 7. Bb3 {[%clk 0:03:02]}  d5 {[%clk 0:02:55]} 8. exd6 {[%clk 0:03:00]}  e6 {[%clk 0:02:53]} 9. cxd4 {[%clk 0:02:57]}  Bxd6 {[%clk 0:02:49]} 10. O-O {[%clk 0:02:56]}  O-O {[%clk 0:02:47]} 11. Nc3 {[%clk 0:02:56]}  Nc6 {[%clk 0:02:46]} 12. a3 {[%clk 0:02:48]}  Be7 {[%clk 0:02:41]} 13. Bc2 {[%clk 0:02:42]}  Bf6 {[%clk 0:02:37]} 14. Qd3 {[%clk 0:02:41]}  g6 {[%clk 0:02:37]} 15. Bh6 {[%clk 0:02:39]}  Re8 {[%clk 0:02:37]} 16. Rad1 {[%clk 0:02:37]}  Nd5 {[%clk 0:02:27]} 17. Ne4 {[%clk 0:02:34]}  Bh8 {[%clk 0:02:17]} 18. Rfe1 {[%clk 0:02:01]}  b5 {[%clk 0:01:57]} 19. h4 {[%clk 0:01:45]}  Ra7 {[%clk 0:01:48]} 20. h5 {[%clk 0:01:45]}  Bg7 {[%clk 0:01:31]} 21. Bxg7 {[%clk 0:01:36]}  Kxg7 {[%clk 0:01:31]} 22. Neg5 {[%clk 0:01:19]}  Qf6 {[%clk 0:00:39]} 23. Ne4 {[%clk 0:01:08]}  Qd8 {[%clk 0:00:34]} 24. Nc5 {[%clk 0:01:00]}  Nce7 {[%clk 0:00:26]} 25. Ne5 {[%clk 0:00:59]}  Qd6 {[%clk 0:00:19]} 26. Qh3 {[%clk 0:00:41]}  h6 {[%clk 0:00:11]} 27. hxg6 {[%clk 0:00:40]}  fxg6 {[%clk 0:00:12]} 28. Qg3 {[%clk 0:00:39]}  g5 {[%clk 0:00:08]} 29. Qd3 {[%clk 0:00:38]}  Rh8 {[%clk 0:00:07]} 30. Ne4 {[%clk 0:00:27]}  Qd8 {[%clk 0:00:07]} 31. Qg3 {[%clk 0:00:25]}  Qf8 {[%clk 0:00:06]} 32. Nxg5 {[%clk 0:00:23]}  Nf5 {[%clk 0:00:06]} 33. Nxe6+ {[%clk 0:00:21]}  Kf6 {[%clk 0:00:06]} 34. Qg6+ {[%clk 0:00:16]}  Ke7 {[%clk 0:00:04]} 35. Nxf8 {[%clk 0:00:16]}  Rxf8 {[%clk 0:00:04]} 36. Nc6+ {[%clk 0:00:16]} 1-0

[Event "January 9 Early 2024"]
[Site "https://www.chess.com"]
[Date "2024.01.11"]
[Round "2"]
[White "Klimkowski, Jan"]
[Black "Kleiman, Jake"]
[Result "0-1"]
[Board "180"]
[TimeControl "180+1"]
[WhiteFideId "21856222"]
[BlackFideId "2020041"]
[WhiteElo "2936"]
[BlackElo "2638"]
[WhiteTeam "POL"]
[BlackTeam "USA"]
[WhiteClock "0:00:18"]
[BlackClock "0:00:17"]

1. d4 {[%clk 0:03:00]}  Nf6 {[%clk 0:02:57]} 2. Nf3 {[%clk 0:03:01]}  e6 {[%clk 0:02:57]} 3. c4 {[%clk 0:03:01]}  Bb4+ {[%clk 0:02:57]} 4. Nbd2 {[%clk 0:03:01]}  O-O {[%clk 0:02:56]} 5. a3 {[%clk 0:02:59]}  Be7 {[%clk 0:02:56]} 6. g3 {[%clk 0:02:57]}  d5 {[%clk 0:02:56]} 7. Bg2 {[%clk 0:02:58]}  b6 {[%clk 0:02:56]} 8. O-O {[%clk 0:02:59]}  Bb7 {[%clk 0:02:55]} 9. cxd5 {[%clk 0:02:52]}  Bxd5 {[%clk 0:02:53]} 10. Qc2 {[%clk 0:02:49]}  c5 {[%clk 0:02:53]} 11. e4 {[%clk 0:02:47]}  Bb7 {[%clk 0:02:53]} 12. dxc5 {[%clk 0:02:47]}  bxc5 {[%clk 0:02:53]} 13. Ne5 {[%clk 0:02:44]}  Nbd7 {[%clk 0:02:49]} 14. Nxd7 {[%clk 0:02:44]}  Qxd7 {[%clk 0:02:46]} 15. Nc4 {[%clk 0:02:45]}  Rfd8 {[%clk 0:02:41]} 16. Na5 {[%clk 0:02:40]}  Ba6 {[%clk 0:02:41]} 17. Re1 {[%clk 0:02:37]}  Rac8 {[%clk 0:02:29]} 18. Bg5 {[%clk 0:02:30]}  h6 {[%clk 0:02:22]} 19. Bf4 {[%clk 0:02:21]}  Qb5 {[%clk 0:02:14]} 20. Qc3 {[%clk 0:02:04]}  c4 {[%clk 0:01:36]} 21. Bf1 {[%clk 0:01:27]}  Bc5 {[%clk 0:00:52]} 22. h3 {[%clk 0:00:53]}  Qb6 {[%clk 0:00:47]} 23. Re2 {[%clk 0:00:49]}  Bd4 {[%clk 0:00:44]} 24. Qb4 {[%clk 0:00:49]}  c3 {[%clk 0:00:28]} 25. bxc3 {[%clk 0:00:48]}  Bxe2 {[%clk 0:00:28]} 26. cxd4 {[%clk 0:00:44]}  Bxf1 {[%clk 0:00:27]} 27. Rxf1 {[%clk 0:00:44]}  Rxd4 {[%clk 0:00:26]} 28. Qxb6 {[%clk 0:00:34]}  axb6 {[%clk 0:00:27]} 29. Nb7 {[%clk 0:00:35]}  Nxe4 {[%clk 0:00:25]} 30. Rb1 {[%clk 0:00:34]}  Rc6 {[%clk 0:00:23]} 31. Be3 {[%clk 0:00:32]}  Rd7 {[%clk 0:00:23]} 32. Rb4 {[%clk 0:00:28]}  f5 {[%clk 0:00:22]} 33. f3 {[%clk 0:00:28]}  Nc3 {[%clk 0:00:20]} 34. a4 {[%clk 0:00:19]}  Nd5 {[%clk 0:00:19]} 35. Nc5 {[%clk 0:00:16]}  bxc5 {[%clk 0:00:16]} 36. Rb8+ {[%clk 0:00:17]}  Kh7 {[%clk 0:00:17]} 37. Bd2 {[%clk 0:00:18]}  c4 {[%clk 0:00:17]} 38. Kf2 {[%clk 0:00:18]}  c3 {[%clk 0:00:18]} 39. Bc1 {[%clk 0:00:19]}  c2 {[%clk 0:00:18]} 40. a5 {[%clk 0:00:18]}  Nc3 {[%clk 0:00:18]} 41. Rb3 {[%clk 0:00:18]}  Rd1 {[%clk 0:00:17]} 0-1

[Event "January 9 Early 2024"]
[Site "https://www.chess.com"]
[Date "2024.01.11"]
[Round "2"]
[White "Tabuenca Mendataurigoitia, Daniel"]
[Black "Pultinevicius, Paulius"]
[Result "1-0"]
[Board "181"]
[TimeControl "180+1"]
[WhiteFideId "24563617"]
[BlackFideId "12809390"]
[WhiteElo "2564"]
[BlackElo "2811"]
[WhiteTeam "ESP"]
[BlackTeam "LTU"]
[WhiteClock "0:00:21"]
[BlackClock "0:00:02"]

1. Nf3 {[%clk 0:03:00]}  Nf6 {[%clk 0:02:58]} 2. g3 {[%clk 0:02:59]}  g6 {[%clk 0:02:50]} 3. Bg2 {[%clk 0:02:59]}  Bg7 {[%clk 0:02:50]} 4. O-O {[%clk 0:02:58]}  O-O {[%clk 0:02:51]} 5. d3 {[%clk 0:02:58]}  d5 {[%clk 0:02:50]} 6. Nbd2 {[%clk 0:02:54]}  Nc6 {[%clk 0:02:49]} 7. e4 {[%clk 0:02:51]}  e5 {[%clk 0:02:49]} 8. c3 {[%clk 0:02:44]}  dxe4 {[%clk 0:02:32]} 9. Nxe4 {[%clk 0:02:42]}  Nxe4 {[%clk 0:02:10]} 10. dxe4 {[%clk 0:02:34]}  Be6 {[%clk 0:02:06]} 11. b3 {[%clk 0:02:26]}  Qxd1 {[%clk 0:02:00]} 12. Rxd1 {[%clk 0:02:25]}  Rfd8 {[%clk 0:01:59]} 13. Be3 {[%clk 0:02:10]}  f6 {[%clk 0:01:51]} 14. Nd2 {[%clk 0:02:03]}  Rd3 {[%clk 0:01:38]} 15. Rac1 {[%clk 0:01:56]}  Rad8 {[%clk 0:01:36]} 16. Bf1 {[%clk 0:01:55]}  Rxe3 {[%clk 0:01:36]} 17. fxe3 {[%clk 0:01:53]}  Bg4 {[%clk 0:01:37]} 18. Kf2 {[%clk 0:01:47]}  Bxd1 {[%clk 0:01:32]} 19. Rxd1 {[%clk 0:01:48]}  Kf8 {[%clk 0:01:22]} 20. Ke2 {[%clk 0:01:42]}  Bh6 {[%clk 0:01:22]} 21. Bh3 {[%clk 0:01:32]}  Ke7 {[%clk 0:01:18]} 22. Nf1 {[%clk 0:01:32]}  Rxd1 {[%clk 0:01:19]} 23. Kxd1 {[%clk 0:01:32]}  Nd8 {[%clk 0:01:16]} 24. Ke2 {[%clk 0:01:29]}  Nf7 {[%clk 0:01:14]} 25. Kd3 {[%clk 0:01:26]}  Nd6 {[%clk 0:01:13]} 26. Nd2 {[%clk 0:01:25]}  c6 {[%clk 0:00:52]} 27. Nc4 {[%clk 0:01:18]}  Nf7 {[%clk 0:00:22]} 28. a4 {[%clk 0:00:50]}  Kd8 {[%clk 0:00:22]} 29. Be6 {[%clk 0:00:47]}  Ng5 {[%clk 0:00:22]} 30. Bg8 {[%clk 0:00:45]}  Ke7 {[%clk 0:00:15]} 31. h4 {[%clk 0:00:43]}  Nf3 {[%clk 0:00:13]} 32. Na5 {[%clk 0:00:33]}  Ne1+ {[%clk 0:00:03]} 33. Ke2 {[%clk 0:00:32]}  Nc2 {[%clk 0:00:03]} 34. Nxb7 {[%clk 0:00:29]}  Nxe3 {[%clk 0:00:03]} 35. Na5 {[%clk 0:00:28]}  Nc2 {[%clk 0:00:01]} 36. Nxc6+ {[%clk 0:00:25]}  Kf8 {[%clk 0:00:02]} 37. Bd5 {[%clk 0:00:22]}  a6 {[%clk 0:00:01]} 38. Nb8 {[%clk 0:00:21]}  a5 {[%clk 0:00:02]} 39. Nc6 {[%clk 0:00:21]} 1-0

[Event "January 9 Early 2024"]
[Site "https://www.chess.com"]
[Date "2024.01.11"]
[Round "2"]
[White "Sarkar, Justin"]
[Black "Rottenwohrer Suarez, Juan"]
[Result "1-0"]
[Board "183"]
[TimeControl "180+1"]
[WhiteFideId "2010011"]
[BlackFideId "32068182"]
[WhiteElo "2286"]
[BlackElo "2488"]
[WhiteTeam "USA"]
[BlackTeam "ESP"]
[WhiteClock "0:00:08"]
[BlackClock "0:00:02"]

1. d4 {[%clk 0:02:39]}  Nf6 {[%clk 0:02:47]} 2. c4 {[%clk 0:02:38]}  e6 {[%clk 0:02:42]} 3. Nf3 {[%clk 0:02:36]}  d5 {[%clk 0:02:41]} 4. Nc3 {[%clk 0:02:17]}  c6 {[%clk 0:02:41]} 5. Bg5 {[%clk 0:02:11]}  Nbd7 {[%clk 0:02:41]} 6. e3 {[%clk 0:02:07]}  h6 {[%clk 0:02:42]} 7. Bh4 {[%clk 0:02:06]}  Bd6 {[%clk 0:02:41]} 8. Bd3 {[%clk 0:01:57]}  Qa5 {[%clk 0:02:35]} 9. O-O {[%clk 0:01:53]}  O-O {[%clk 0:02:33]} 10. c5 {[%clk 0:01:47]}  Bb8 {[%clk 0:02:19]} 11. Rb1 {[%clk 0:01:45]}  Qd8 {[%clk 0:02:14]} 12. b4 {[%clk 0:01:44]}  e5 {[%clk 0:02:15]} 13. e4 {[%clk 0:01:31]}  exd4 {[%clk 0:02:07]} 14. Nxd4 {[%clk 0:01:30]}  Ne5 {[%clk 0:01:56]} 15. exd5 {[%clk 0:01:24]}  g5 {[%clk 0:01:36]} 16. Bg3 {[%clk 0:01:19]}  Nxd5 {[%clk 0:01:37]} 17. Nxd5 {[%clk 0:01:06]}  Qxd5 {[%clk 0:01:37]} 18. Bf5 {[%clk 0:01:02]}  Be6 {[%clk 0:00:57]} 19. Nxe6 {[%clk 0:00:43]}  fxe6 {[%clk 0:00:58]} 20. Bc2 {[%clk 0:00:40]}  Kg7 {[%clk 0:00:39]} 21. Qh5 {[%clk 0:00:27]}  Rf6 {[%clk 0:00:17]} 22. f4 {[%clk 0:00:26]}  Nd3 {[%clk 0:00:10]} 23. fxg5 {[%clk 0:00:20]}  hxg5 {[%clk 0:00:02]} 24. Bxd3 {[%clk 0:00:18]}  Qd4+ {[%clk 0:00:01]} 25. Kh1 {[%clk 0:00:16]}  Qxd3 {[%clk 0:00:01]} 26. Qxg5+ {[%clk 0:00:12]}  Rg6 {[%clk 0:00:01]} 27. Qe7+ {[%clk 0:00:11]}  Kh6 {[%clk 0:00:01]} 28. Rbd1 {[%clk 0:00:10]}  Bxg3 {[%clk 0:00:01]} 29. Rxd3 {[%clk 0:00:09]}  Rh8 {[%clk 0:00:01]} 30. Rxg3 {[%clk 0:00:07]}  Rxg3 {[%clk 0:00:01]} 31. hxg3 {[%clk 0:00:07]}  Kg6+ {[%clk 0:00:02]} 32. Kg1 {[%clk 0:00:08]} 1-0

[Event "January 9 Early 2024"]
[Site "https://www.chess.com"]
[Date "2024.01.11"]
[Round "2"]
[White "Piesik, Piotr"]
[Black "Nakamura, Hikaru"]
[Result "0-1"]
[Board "184"]
[TimeControl "180+1"]
[WhiteFideId "1136194"]
[BlackFideId "2016192"]
[WhiteElo "2681"]
[BlackElo "3261"]
[WhiteTeam "CZE"]
[BlackTeam "USA"]
[WhiteClock "0:00:42"]
[BlackClock "0:00:25"]

1. Nf3 {[%clk 0:02:56]}  g6 {[%clk 0:02:58]} 2. g3 {[%clk 0:02:49]}  Bg7 {[%clk 0:02:59]} 3. d4 {[%clk 0:02:49]}  d6 {[%clk 0:02:58]} 4. Bg2 {[%clk 0:02:49]}  Bd7 {[%clk 0:02:58]} 5. O-O {[%clk 0:02:49]}  Qc8 {[%clk 0:02:58]} 6. e4 {[%clk 0:02:47]}  c5 {[%clk 0:02:50]} 7. c3 {[%clk 0:02:45]}  Nc6 {[%clk 0:02:49]} 8. dxc5 {[%clk 0:02:44]}  dxc5 {[%clk 0:02:48]} 9. Be3 {[%clk 0:02:44]}  b6 {[%clk 0:02:48]} 10. Na3 {[%clk 0:02:43]}  Nf6 {[%clk 0:02:44]} 11. Qc2 {[%clk 0:02:39]}  Bh3 {[%clk 0:02:35]} 12. Rfd1 {[%clk 0:02:30]}  Bxg2 {[%clk 0:02:32]} 13. Kxg2 {[%clk 0:02:31]}  O-O {[%clk 0:02:31]} 14. Nd2 {[%clk 0:02:23]}  Ng4 {[%clk 0:02:30]} 15. Nf1 {[%clk 0:02:22]}  Qb7 {[%clk 0:02:21]} 16. f3 {[%clk 0:02:19]}  Nge5 {[%clk 0:02:12]} 17. Qe2 {[%clk 0:02:17]}  f5 {[%clk 0:02:08]} 18. Bf4 {[%clk 0:02:13]}  Rae8 {[%clk 0:02:00]} 19. Nc4 {[%clk 0:02:10]}  Qa6 {[%clk 0:01:57]} 20. Bxe5 {[%clk 0:02:02]}  Nxe5 {[%clk 0:01:54]} 21. Nfe3 {[%clk 0:02:01]}  f4 {[%clk 0:01:54]} 22. gxf4 {[%clk 0:02:00]}  Rxf4 {[%clk 0:01:54]} 23. Rf1 {[%clk 0:01:59]}  Ref8 {[%clk 0:01:54]} 24. Rae1 {[%clk 0:01:49]}  Nxf3 {[%clk 0:01:51]} 25. Rd1 {[%clk 0:01:45]}  Nh4+ {[%clk 0:01:16]} 26. Kg1 {[%clk 0:01:39]}  Rxe4 {[%clk 0:00:57]} 27. Rxf8+ {[%clk 0:01:38]}  Bxf8 {[%clk 0:00:57]} 28. Rd8 {[%clk 0:01:27]}  Rf4 {[%clk 0:00:32]} 29. Nd5 {[%clk 0:01:19]}  Qxc4 {[%clk 0:00:31]} 30. Rxf8+ {[%clk 0:01:00]}  Kxf8 {[%clk 0:00:32]} 31. Qxe7+ {[%clk 0:01:00]}  Kg8 {[%clk 0:00:33]} 32. Qe6+ {[%clk 0:00:58]}  Kg7 {[%clk 0:00:31]} 33. Qe5+ {[%clk 0:00:57]}  Kh6 {[%clk 0:00:30]} 34. Qxf4+ {[%clk 0:00:57]}  Qxf4 {[%clk 0:00:29]} 35. Nxf4 {[%clk 0:00:58]}  Nf3+ {[%clk 0:00:29]} 36. Kg2 {[%clk 0:00:56]}  Ne5 {[%clk 0:00:29]} 37. Nd5 {[%clk 0:00:45]}  Kg5 {[%clk 0:00:28]} 38. b4 {[%clk 0:00:40]}  cxb4 {[%clk 0:00:27]} 39. cxb4 {[%clk 0:00:41]}  Kf5 {[%clk 0:00:27]} 40. Ne7+ {[%clk 0:00:39]}  Ke6 {[%clk 0:00:27]} 41. Nc8 {[%clk 0:00:40]}  Nc6 {[%clk 0:00:25]} 42. b5 {[%clk 0:00:40]}  Kd7 {[%clk 0:00:25]} 43. Nxb6+ {[%clk 0:00:39]}  axb6 {[%clk 0:00:26]} 44. bxc6+ {[%clk 0:00:40]}  Kxc6 {[%clk 0:00:27]} 45. Kf3 {[%clk 0:00:40]}  Kb5 {[%clk 0:00:20]} 46. Kf4 {[%clk 0:00:37]}  Ka4 {[%clk 0:00:21]} 47. Kg5 {[%clk 0:00:37]}  Ka3 {[%clk 0:00:21]} 48. Kh6 {[%clk 0:00:37]}  Kxa2 {[%clk 0:00:22]} 49. Kxh7 {[%clk 0:00:38]}  b5 {[%clk 0:00:23]} 50. Kxg6 {[%clk 0:00:38]}  b4 {[%clk 0:00:23]} 51. h4 {[%clk 0:00:38]}  b3 {[%clk 0:00:24]} 52. h5 {[%clk 0:00:39]}  b2 {[%clk 0:00:25]} 53. h6 {[%clk 0:00:40]}  b1=Q+ {[%clk 0:00:26]} 54. Kg7 {[%clk 0:00:40]}  Qb2+ {[%clk 0:00:26]} 55. Kg8 {[%clk 0:00:40]}  Qg2+ {[%clk 0:00:26]} 56. Kf7 {[%clk 0:00:40]}  Qh3 {[%clk 0:00:25]} 57. Kg7 {[%clk 0:00:41]}  Qg4+ {[%clk 0:00:25]} 58. Kf7 {[%clk 0:00:41]}  Qh5+ {[%clk 0:00:25]} 59. Kg7 {[%clk 0:00:42]}  Qg5+ {[%clk 0:00:25]} 60. Kh7 {[%clk 0:00:42]}  Qf6 {[%clk 0:00:25]} 0-1